bitfinex-derivatives/quotes_SOLF0:USTF0_20250319
["timestamp","ask_amount","ask_price","bid_price","bid_amount"]
[1742390237702,1.022e-05,128.72,128.7,50.84828945]
[1742390237906,1.022e-05,128.72,128.71,42.1892]
[1742390238195,1.022e-05,128.72,128.7,0.04948339]
[1742390239502,1.022e-05,128.72,128.71,7.7692]
[1742390239697,1.022e-05,128.72,128.71,42.1692]
[1742390239892,1.022e-05,128.72,128.71,34.4]
[1742390241289,1.022e-05,128.72,128.7,0.04948339]
[1742390242498,1.022e-05,128.72,128.7,7.81888339]
[1742390242698,1.022e-05,128.72,128.7,0.04948339]
[1742390243901,1.022e-05,128.72,128.67,34.46]
[1742390244901,1.022e-05,128.72,128.68,50.85282353]
[1742390245399,1.022e-05,128.72,128.68,0.05401747]
[1742390245792,50.79880606,128.71,128.68,0.05401747]
[1742390246198,50.79880606,128.71,128.64,42.2132]
[1742390246397,4.1594,128.7,128.64,34.44]
[1742390247004,38.6394,128.7,128.64,34.44]
[1742390247199,55.09460606,128.69,128.62,34.48]
[1742390247401,7.772,128.67,128.62,34.48]
[1742390247698,0.05140889,128.67,128.64,0.05333114]
[1742390248893,0.05140889,128.67,128.65,34.44]
[1742390249496,7.7727,128.66,128.64,0.05333114]
[1742390249905,0.05140889,128.67,128.64,0.05333114]
[1742390250203,34.46,128.69,128.64,0.05333114]
[1742390250604,7.7728,128.65,128.6,34.42]
[1742390251001,7.7728,128.65,128.6,42.1955]
[1742390251208,7.7728,128.65,128.6,34.42]
[1742390251501,50.79880606,128.68,128.6,34.42]
[1742390251502,50.79880606,128.68,128.62,7.7745]
[1742390251696,50.79880606,128.68,128.6,34.42]
[1742390251900,0.05677236,128.66,128.64,0.05419405]
[1742390252300,0.05677236,128.66,128.61,34.34]
[1742390252507,0.05677236,128.66,128.64,0.04973416]
[1742390252707,0.05677236,128.66,128.65,7.7728]
[1742390253901,268.12,128.71,128.68,7.7707]
[1742390254107,268.12,128.71,128.67,34.3]
[1742390254309,15.8517,128.74,128.67,34.3]
[1742390254608,8.084,128.74,128.67,85.09880606]
[1742390255108,0.04954151,128.72,128.69,0.05003866]
[1742390255703,7.81844151,128.72,128.69,0.05003866]
[1742390256003,0.04954151,128.72,128.69,0.05003866]
[1742390256806,0.04954151,128.72,128.65,7.7726]
[1742390256807,7.7702,128.7,128.65,42.0126]
[1742390257005,0.04954151,128.72,128.64,34.24]
[1742390257205,38.5804,128.73,128.69,7.7704]
[1742390257406,4.3204,128.73,128.67,34.26]
[1742390257607,4.3204,128.73,128.68,34.26]
[1742390258106,0.0599456,128.72,128.69,0.05392067]
[1742390258307,0.0599456,128.72,128.69,7.82382067]
[1742390258511,0.0599456,128.72,128.69,0.05392067]
[1742390258711,26.7243456,128.75,128.69,0.05392067]
[1742390258912,7.7677,128.74,128.69,0.05392067]
[1742390259111,50.79880606,128.77,128.69,0.05392067]
[1742390259301,302.34,128.76,128.69,0.05392067]
[1742390259513,268.16,128.76,128.69,0.05392067]
[1742390259912,7.7683,128.73,128.69,0.05392067]
[1742390260213,0.05098256,128.74,128.69,0.05392067]
[1742390260407,7.7683,128.73,128.69,0.05392067]
[1742390260803,0.05098256,128.74,128.69,0.05392067]
[1742390262207,7.7684,128.73,128.69,7.82422067]
[1742390262406,0.05098256,128.74,128.69,0.05392067]
[1742390263305,0.05098256,128.74,128.73,7.768]
[1742390264212,8.0932,128.8,128.73,33.16740303]
[1742390264415,7.762,128.83,128.74,25.39940303]
[1742390264614,55.08920606,128.85,128.75,34.12]
[1742390264813,50.79880606,128.83,128.75,34.12]
[1742390265114,8.5245,128.85,128.74,7.767]
[1742390265115,50.79880606,128.81,128.74,34.12]
[1742390265314,8.5245,128.85,128.74,34.12]
[1742390265517,7.7615,128.84,128.79,7.7641]
[1742390265717,0.05550921,128.81,128.78,34.21547578]
[1742390266208,50.85431527,128.81,128.78,0.05547578]
[1742390266413,7.7651,128.78,128.74,34.22]
[1742390266815,84.99880606,128.79,128.71,34.2]
[1742390267114,50.79880606,128.77,128.71,34.2]
[1742390267510,50.79880606,128.77,128.73,0.05470074]
[1742390267712,0.04969207,128.75,128.73,0.05470074]
[1742390269012,0.04969207,128.75,128.74,34.26]
[1742390269207,50.79880606,128.84,128.74,34.26]
[1742390269406,318.81880606,128.86,128.74,34.26]
[1742390269712,50.79880606,128.84,128.74,34.26]
[1742390270317,0.05970196,128.8,128.78,0.0489201]
[1742390271410,0.05970196,128.8,128.79,7.7644]
[1742390271612,0.05970196,128.8,128.78,0.0489201]
[1742390272314,7.7652,128.78,128.73,7.7677]
[1742390272520,34.36,128.79,128.72,38.5778]
[1742390273216,38.3553,128.81,128.72,38.5778]
[1742390273414,7.7641,128.8,128.75,7.7664]
[1742390273714,0.05381475,128.78,128.75,0.0489071]
[1742390273915,0.05381475,128.78,128.76,7.7658]
[1742390274320,0.05381475,128.78,128.75,0.0489071]
[1742390274818,0.05381475,128.78,128.75,34.4489071]
[1742390275613,0.05381475,128.78,128.76,7.7662]
[1742390276017,0.05381475,128.78,128.75,34.4489071]
[1742390276220,0.05381475,128.78,128.75,0.0489071]
[1742390277221,0.05381475,128.78,128.76,34.28]
[1742390277518,7.7623,128.83,128.78,7.7645]
[1742390277915,12.8187,128.85,128.76,34.28]
[1742390278518,0.05391529,128.82,128.79,0.05424631]
[1742390279525,0.05391529,128.82,128.81,7.7632]
[1742390279717,2.87261529,128.85,128.79,34.25424631]
[1742390279918,46.78391626,128.94,128.79,34.25424631]
[1742390279919,269.27119394,128.92,128.79,34.25424631]
[1742390280114,31.27221626,128.89,128.79,34.25424631]
[1742390280416,31.27221626,128.89,128.82,7.7621]
[1742390280614,65.43221626,128.89,128.81,34.16]
[1742390280819,0.05758479,128.87,128.84,0.05002038]
[1742390282728,0.05758479,128.87,128.81,34.16]
[1742390282926,0.05758479,128.87,128.81,34.1]
[1742390283118,0.05758479,128.87,128.83,7.7615]
[1742390283321,0.05758479,128.87,128.81,34.1]
[1742390283524,0.05758479,128.87,128.84,7.761]
[1742390283822,0.05758479,128.87,128.84,7.81661993]
[1742390284218,65.46980105,128.87,128.84,0.05561993]
[1742390284423,31.27221626,128.85,128.81,34.1]
[1742390284726,31.27221626,128.85,128.8,7.7635]
[1742390284924,34.14,128.84,128.77,302.02]
[1742390285226,34.14,128.84,128.79,7.7639]
[1742390285425,34.14,128.84,128.77,302.02]
[1742390285624,0.05090719,128.83,128.82,7.7626]
[1742390287030,15.63610813,128.9,128.8,34.15829111]
[1742390287230,359.0,129.09,128.83,31.27221626]
[1742390287231,15.63610813,128.94,128.83,31.27221626]
[1742390287532,34.18,128.95,128.84,57.9681]
[1742390287826,39.02781626,128.94,128.84,42.4454]
[1742390288023,34.18,128.95,128.91,7.7569]
[1742390288225,0.05592081,128.9,128.88,0.0508866]
[1742390288430,8.2593,128.97,128.87,65.51221626]
[1742390288729,170.76901626,129.06,128.87,65.51221626]
[1742390288730,31.27221626,129.02,128.91,31.27221626]
[1742390289029,0.05163171,128.93,128.92,38.4135]
[1742390289229,31.27221626,129.0,128.92,38.4135]
[1742390289429,0.05627702,128.94,128.92,38.4135]
[1742390289628,38.4621,129.01,128.92,38.4135]
[1742390289930,0.05690235,128.94,128.92,38.46432828]
[1742390290125,4.1621,129.01,128.92,38.4135]
[1742390290328,31.27221626,129.01,128.92,38.4135]
[1742390290532,34.52,129.0,128.92,38.4135]
[1742390290729,31.27221626,128.99,128.92,4.1135]
[1742390290924,35.53721626,128.99,128.92,4.1135]
[1742390291321,31.33122651,128.97,128.86,31.27221626]
[1742390291529,7.7557,128.94,128.87,34.52]
[1742390291833,35.53721626,128.99,128.87,34.52]
[1742390291834,34.54,129.0,128.9,15.63610813]
[1742390292021,7.7529,128.99,128.91,38.5451]
[1742390292225,34.54,129.0,128.92,7.7565]
[1742390292427,34.54,129.0,128.91,38.5451]
[1742390292631,0.04915477,128.97,128.95,0.05394774]
[1742390292830,34.60915477,128.97,128.95,0.05394774]
[1742390293329,65.88137103,128.97,128.87,34.54]
[1742390293528,31.27221626,128.95,128.86,8.1745]
[1742390293728,38.6167,128.94,128.86,42.6945]
[1742390294034,38.6167,128.94,128.86,4.2334]
[1742390294035,31.27221626,128.93,128.86,4.2334]
[1742390294228,7.7584,128.89,128.83,34.5]
[1742390294424,34.5,128.9,128.88,0.05199281]
[1742390294630,34.5,128.9,128.82,46.0848753]
[1742390294631,31.27221626,128.89,128.82,42.1437753]
[1742390294825,31.27221626,128.89,128.82,10.54910103]
[1742390295031,38.4757,128.9,128.79,3.9411]
[1742390295032,31.27221626,128.87,128.79,3.9411]
[1742390295232,34.52,128.86,128.78,34.52]
[1742390295534,34.52,128.86,128.77,282.18260103]
[1742390295838,31.27221626,128.85,128.77,14.48260103]
[1742390296137,31.33092211,128.83,128.81,0.04973638]
[1742390296336,7.7638,128.8,128.77,10.54910103]
[1742390296731,31.27221626,128.81,128.77,10.54910103]
[1742390296931,34.54,128.8,128.73,34.54]
[1742390297133,34.54,128.84,128.74,50.7844587]
[1742390297328,7.7611,128.85,128.76,50.7844587]
[1742390297528,0.05759181,128.8,128.78,0.05615347]
[1742390297926,34.52,128.86,128.78,3.98965347]
[1742390298130,0.05931389,128.8,128.78,3.98965347]
[1742390298335,0.05931389,128.8,128.78,3.9335]
[1742390298536,85.3644587,128.84,128.77,34.52]
[1742390298734,0.04924238,128.8,128.78,0.05789664]
[1742390299032,85.41370108,128.8,128.71,4.0514]
[1742390299337,4.1222,128.79,128.71,38.6714]
[1742390299538,4.1222,128.79,128.72,7.7682]
[1742390299739,54.9066587,128.79,128.71,38.6714]
[1742390300134,7.7666,128.76,128.71,4.0514]
[1742390300338,7.7666,128.76,128.7,4.1876]
[1742390300339,0.05343077,128.76,128.74,0.05685053]
[1742390301140,0.05343077,128.76,128.74,7.82385053]
[1742390301338,0.05343077,128.76,128.74,0.05685053]
[1742390302741,7.7679,128.74,128.67,38.9914]
[1742390303139,34.94,128.75,128.67,38.9914]
[1742390303736,34.96,128.77,128.67,38.9914]
[1742390303943,0.04897677,128.72,128.7,7.82331049]
[1742390304131,0.04897677,128.72,128.7,0.05391049]
[1742390304332,4.2816,128.8,128.7,50.83836919]
[1742390304529,8.5679,128.81,128.72,50.7844587]
[1742390304730,25.81217973,128.94,128.73,39.2303]
[1742390304937,191.80225882,129.21,128.93,152.3533761]
[1742390305137,191.80225882,129.21,129.13,25.39222935]
[1742390305338,191.80225882,129.21,129.07,39.02]
[1742390305642,50.7844587,129.19,129.16,0.05645247]
[1742390305837,50.7844587,129.18,129.01,39.08]
[1742390306042,50.7844587,129.14,129.02,20.1476786]
[1742390306350,124.0,129.13,129.03,7.74910715]
[1742390306635,54.9944587,129.18,129.05,50.7844587]
[1742390306829,307.12,129.17,129.06,39.26]
[1742390307033,267.86,129.17,129.06,39.26]
[1742390307232,0.0498771,129.13,129.1,0.0547114]
[1742390307433,0.0498771,129.13,129.11,15.55628648]
[1742390307742,0.0498771,129.13,129.12,15.55628648]
[1742390307940,0.0498771,129.13,129.12,26.93971626]
[1742390308141,0.0498771,129.13,129.12,26.96414225]
[1742390308338,267.86,129.17,129.12,40.41758252]
[1742390308538,267.86,129.17,129.13,15.55628648]
[1742390308844,163.16,129.16,129.1,10.54910103]
[1742390309032,50.7844587,129.15,129.1,10.54910103]
[1742390309437,50.7844587,129.15,129.11,69.03034373]
[1742390309736,50.7844587,129.12,129.11,36.4808603]
[1742390309935,140.6289174,129.12,129.09,1e-08]
[1742390310140,391.66,129.11,129.09,1e-08]
[1742390310339,50.7844587,129.08,129.05,209.62438229]
[1742390310538,39.04,129.07,129.05,209.62438229]
[1742390310740,39.04,129.07,129.05,183.52163883]
[1742390311136,39.09611472,129.07,129.05,183.57098778]
[1742390311332,39.09611472,129.07,129.05,0.04934895]
[1742390311740,46.83611472,129.07,128.98,50.25463395]
[1742390311940,50.7844587,129.05,128.98,50.25463395]
[1742390312246,306.52,129.04,128.98,50.25463395]
[1742390312944,0.04964105,129.02,128.99,11.0883935]
[1742390313243,0.04964105,129.02,129.0,0.05509934]
[1742390314042,50.7844587,129.02,129.0,0.05509934]
[1742390314445,58.5444587,129.02,128.9,38.74]
[1742390314743,50.7844587,128.99,128.91,11.09900243]
[1742390314937,50.7844587,128.99,128.9,38.74]
[1742390314938,306.26,128.98,128.92,11.09900243]
[1742390315142,306.26,128.98,128.89,4.1413]
[1742390315143,50.7844587,128.96,128.89,4.1413]
[1742390315340,38.7,128.95,128.89,4.1413]
[1742390315745,0.05660338,128.93,128.91,0.05293356]
[1742390315942,267.54,128.92,128.91,0.05293356]
[1742390316340,306.16,128.92,128.91,0.05293356]
[1742390316950,267.54,128.92,128.91,0.05293356]
[1742390317643,267.54,128.92,128.86,13.88726171]
[1742390317847,89.2644587,128.91,128.82,13.88726171]
[1742390318150,89.2644587,128.91,128.83,11.1174144]
[1742390318346,38.48,128.91,128.84,11.1174144]
[1742390318541,38.48,128.91,128.85,11.1174144]
[1742390318740,38.48,128.91,128.82,13.90356598]
[1742390318940,0.05284897,128.89,128.87,0.05016293]
[1742390320051,0.05284897,128.89,128.88,11.12058692]
[1742390320559,0.05284897,128.89,128.87,0.05016293]
[1742390320758,0.05284897,128.89,128.88,6.95106118]
[1742390320966,0.05284897,128.89,128.87,0.05016293]
[1742390321750,0.05284897,128.89,128.88,6.9528646]
[1742390322655,0.05284897,128.89,128.88,18.07801847]
[1742390323360,247.59284897,128.92,128.88,18.07801847]
[1742390323561,247.59284897,128.92,128.89,6.9528646]
[1742390323758,38.08,128.91,128.87,0.05016293]
[1742390323950,7.7577,128.9,128.88,6.95571248]
[1742390324156,7.7577,128.9,128.87,0.05016293]
[1742390324157,247.59284897,128.92,128.87,0.05016293]
[1742390324361,247.59284897,128.92,128.88,18.08458676]
[1742390324563,0.05305001,128.91,128.89,56.18458676]
[1742390324860,0.05305001,128.91,128.9,6.95544679]
[1742390325463,0.05305001,128.91,128.87,0.05016293]
[1742390325664,0.05305001,128.91,128.88,6.96079123]
[1742390325857,0.05305001,128.91,128.89,6.96079123]
[1742390326059,0.05305001,128.91,128.88,11.13561525]
[1742390326263,0.05305001,128.91,128.89,6.96005133]
[1742390326560,50.83750871,128.91,128.87,11.18988172]
[1742390326764,50.83750871,128.91,128.88,6.96212267]
[1742390327066,0.05305001,128.91,128.87,0.05016293]
[1742390327264,0.05305001,128.91,128.88,6.96181693]
[1742390327467,0.05305001,128.91,128.87,0.05016293]
[1742390327763,0.05305001,128.91,128.88,6.96305138]
[1742390327959,0.05305001,128.91,128.88,37.9]
[1742390328162,0.05305001,128.91,128.89,6.96139235]
[1742390328356,0.05305001,128.91,128.9,6.96139235]
[1742390328763,0.05305001,128.91,128.9,18.09703205]
[1742390328960,267.64,128.99,128.9,25.85703205]
[1742390329158,267.64,128.99,128.91,120.67716969]
[1742390329366,318.4244587,128.99,128.92,18.09703205]
[1742390329663,356.3244587,128.99,128.93,6.96139235]
[1742390329858,7.7537,128.97,128.94,6.96139235]
[1742390330063,356.3244587,128.99,128.91,37.88]
[1742390330265,7.7541,128.96,128.95,0.05397157]
[1742390331263,0.05369384,128.97,128.95,0.05397157]
[1742390332165,0.05369384,128.97,128.96,6.9496977]
[1742390332762,267.58,129.01,128.96,18.0682178]
[1742390332962,267.58,129.01,128.97,44.7296977]
[1742390333163,267.58,129.01,128.97,37.78]
[1742390333469,7.7543,128.96,128.95,37.76]
[1742390333660,50.7844587,129.0,128.95,6.94776256]
[1742390333861,50.7844587,129.0,128.94,37.76]
[1742390334157,0.05796662,128.99,128.96,0.05971596]
[1742390334965,7.7541,128.97,128.96,0.05971596]
[1742390336055,7.81056662,128.99,128.96,0.05971596]
[1742390336259,0.05796662,128.99,128.96,0.05971596]
[1742390336867,0.05796662,128.99,128.97,6.94633456]
[1742390337070,0.05796662,128.99,128.98,37.54]
[1742390337767,7.81026662,128.99,128.98,37.54]
[1742390338367,271.6114,129.07,128.98,106.37192585]
[1742390338557,271.6114,129.07,128.99,18.04746715]
[1742390338558,4.0514,129.07,128.99,18.04746715]
[1742390338758,50.7844587,129.09,129.0,6.94309822]
[1742390338962,50.7844587,129.09,129.01,44.42309822]
[1742390339163,7.7499,129.03,129.02,18.03937807]
[1742390339366,267.54,129.1,129.02,6.94309822]
[1742390339561,267.54,129.1,129.04,0.05780895]
[1742390339562,0.05341345,129.06,129.04,0.05780895]
[1742390339770,7.7491,129.05,129.04,37.49780895]
[1742390339968,7.7491,129.05,129.04,0.05780895]
[1742390340570,7.7511,129.01,129.0,37.42]
[1742390340770,50.7844587,129.05,129.0,37.42]
[1742390340967,50.7844587,129.07,129.0,37.42]
[1742390341370,267.54,129.1,129.0,37.42]
[1742390341565,267.54,129.1,129.01,18.03034045]
[1742390341873,50.84169093,129.06,129.04,3.229e-05]
[1742390342067,37.38,129.05,129.04,3.229e-05]
[1742390342262,37.38,129.05,128.94,12.0047]
[1742390342263,7.79723223,129.06,128.98,37.34]
[1742390342468,0.05723223,129.06,128.99,44.28198722]
[1742390342668,50.7844587,129.07,128.99,37.34]
[1742390343068,37.34,129.06,128.94,35.53375407]
[1742390343267,50.7844587,129.04,128.95,69.27432783]
[1742390343468,0.0516744,129.01,128.99,0.05505554]
[1742390344167,0.0516744,129.01,129.0,6.94770611]
[1742390344771,0.0516744,129.01,129.0,18.06545888]
[1742390344968,0.0516744,129.01,128.99,0.05505554]
[1742390345163,0.0516744,129.01,129.0,6.94825694]
[1742390345368,267.48,129.09,129.0,6.94825694]
[1742390345666,50.7844587,129.06,129.01,44.28825694]
[1742390345866,7.751,129.02,129.01,37.34]
[1742390346170,50.7844587,129.06,128.99,37.32]
[1742390346372,7.7511,129.01,129.0,6.96059428]
[1742390346569,267.48,129.03,128.95,31.28415407]
[1742390346769,267.48,129.02,128.99,0.05688419]
[1742390346977,7.8107773,129.0,128.99,0.05688419]
[1742390347475,7.73e-05,129.0,128.99,18.17857436]
[1742390347672,7.73e-05,129.0,128.99,69.64361342]
[1742390348078,7.73e-05,129.0,128.99,18.17857436]
[1742390348376,7.73e-05,129.0,128.99,18.212338]
[1742390348580,7.7517773,129.0,128.99,7.03104125]
[1742390348778,7.7517773,129.0,128.99,0.05688419]
[1742390349173,7.73e-05,129.0,128.99,0.05688419]
[1742390349373,7.73e-05,129.0,128.99,18.09680548]
[1742390349877,7.73e-05,129.0,128.99,39.72871817]
[1742390350073,7.7458,129.1,129.03,7.7499]
[1742390350272,271.6575,129.11,129.04,69.65183398]
[1742390350478,271.6575,129.11,129.05,69.43479758]
[1742390350677,271.6575,129.11,129.06,17.7481263]
[1742390350876,271.6575,129.11,129.07,17.7481263]
[1742390351076,271.6575,129.11,129.08,6.82620242]
[1742390351381,0.05886281,129.1,129.09,6.8272331]
[1742390351782,0.05886281,129.1,129.08,0.05939636]
[1742390352771,7.7463,129.09,129.08,0.05939636]
[1742390353381,7.80486281,129.1,129.08,6.8912565]
[1742390353576,0.05886281,129.1,129.08,0.05939636]
[1742390353974,7.7463,129.09,129.08,0.05939636]
[1742390354179,50.7844587,129.09,129.03,13.66394442]
[1742390354379,50.7844587,129.06,129.04,10.94327903]
[1742390354579,7.7501,129.03,129.01,13.68306849]
[1742390354784,267.42,129.05,129.02,24.62862701]
[1742390354981,267.42,129.05,128.99,37.56]
[1742390355176,267.42,129.05,129.0,18.50142032]
[1742390355377,0.05290716,129.03,129.01,10.83002653]
[1742390355580,0.05290716,129.03,129.02,10.77954745]
[1742390355885,0.05290716,129.03,129.01,0.05047908]
[1742390356086,7.7505,129.02,129.01,0.05047908]
[1742390356688,50.7844587,129.02,128.97,31.28415407]
[1742390356985,50.7844587,129.02,128.96,37.44]
[1742390357184,37.49290716,129.03,128.97,10.56690716]
[1742390357383,37.49290716,129.03,128.94,127.00107979]
[1742390357384,37.44,129.03,128.94,127.00107979]
[1742390357583,37.44,129.03,128.95,18.07952018]
[1742390357888,0.04939621,129.0,128.97,0.04903299]
[1742390358087,0.04939621,129.0,128.98,47.94705316]
[1742390358277,0.04939621,129.0,128.97,0.04903299]
[1742390358475,0.04939621,129.0,128.98,10.56537124]
[1742390358685,0.04939621,129.0,128.99,10.56437471]
[1742390359487,267.42,129.05,128.99,47.82437471]
[1742390359690,267.42,129.05,129.0,10.56437471]
[1742390359983,50.7844587,129.04,128.95,7.51246702]
[1742390360188,37.22,129.03,128.96,10.56482988]
[1742390360386,37.22,129.03,128.95,37.22]
[1742390360591,0.05967944,129.01,128.98,0.05339165]
[1742390361095,7.7526,128.99,128.98,0.05339165]
[1742390361490,7.7547,128.95,128.93,114.06099122]
[1742390361993,7.7553,128.94,128.93,114.06099122]
[1742390362387,87.9244587,128.98,128.92,0.29774]
[1742390362590,0.05599001,128.95,128.92,0.35338]
[1742390362790,0.05599001,128.95,128.92,10.93126301]
[1742390362988,0.05599001,128.95,128.93,37.22]
[1742390363389,267.42,128.99,128.96,7.7538]
[1742390363589,59.2792587,129.08,128.97,25.39222935]
[1742390363794,8.4948,129.08,128.99,50.7844587]
[1742390363990,8.4948,129.08,129.01,50.7844587]
[1742390364491,267.46,129.09,129.03,50.7844587]
[1742390364688,0.05599139,129.06,129.04,47.7771712]
[1742390364893,0.05599139,129.06,129.04,37.22]
[1742390365089,0.05599139,129.06,129.04,44.969]
[1742390365291,0.05599139,129.06,129.04,37.22]
[1742390365989,0.05599139,129.06,129.05,7.7487]
[1742390366185,267.42,129.14,129.05,57.3783298]
[1742390366390,8.4948,129.17,129.07,50.7844587]
[1742390366591,8.4948,129.17,129.08,54.24074001]
[1742390366790,7.7437,129.14,129.09,24.88684001]
[1742390366997,8.4948,129.17,129.1,6.5938711]
[1742390367197,8.4948,129.17,129.08,37.1]
[1742390367393,267.42,129.21,129.12,0.04966912]
[1742390367394,0.05134089,129.15,129.12,0.04966912]
[1742390367597,4.3159,129.2,129.13,37.08]
[1742390367795,0.05451313,129.15,129.13,37.08]
[1742390368001,4.3159,129.2,129.14,6.5762778]
[1742390368191,4.3159,129.2,129.13,37.08]
[1742390368394,7.7427,129.16,129.11,37.34]
[1742390368595,37.34,129.18,129.11,37.34]
[1742390368790,50.7844587,129.17,129.09,37.32]
[1742390368994,50.7844587,129.17,129.12,0.04983984]
[1742390369203,0.05320804,129.14,129.12,0.04983984]
[1742390369505,7.7439,129.13,129.12,0.04983984]
[1742390369703,50.7844587,129.13,129.07,37.26]
[1742390369904,50.7844587,129.13,129.05,37.26]
[1742390370098,37.26,129.12,129.06,6.58011751]
[1742390370299,37.26,129.12,129.04,10.5328355]
[1742390370300,41.5222,129.12,129.04,10.5328355]
[1742390370501,7.7467,129.09,129.03,37.26]
[1742390370701,267.34,129.09,129.04,6.5836429]
[1742390370896,7.80131626,129.07,129.05,0.05584469]
[1742390371102,0.05361626,129.07,129.05,0.05584469]
[1742390372402,7.7481,129.06,129.05,0.05584469]
[1742390372706,0.05361626,129.07,129.05,0.05584469]
[1742390373207,7.7481,129.06,129.05,0.05584469]
[1742390373401,0.05361626,129.07,129.05,0.05584469]
[1742390374198,0.05361626,129.07,129.05,37.05584469]
[1742390374402,0.05361626,129.07,129.06,6.59441865]
[1742390374705,7.7446,129.12,129.06,21.0636239]
[1742390375001,7.7446,129.12,129.07,17.1432239]
[1742390375205,267.34,129.14,129.08,54.1232239]
[1742390375408,267.34,129.14,129.09,6.59441865]
[1742390375706,0.05441117,129.13,129.1,0.05420906]
[1742390375902,7.7451,129.11,129.1,0.05420906]
[1742390377508,0.05441117,129.13,129.1,0.05420906]
[1742390378003,0.05441117,129.13,129.11,6.58469197]
[1742390378196,0.05441117,129.13,129.12,6.58324009]
[1742390378400,7.7445,129.12,129.11,36.8]
[1742390378601,7.7445,129.12,129.11,6.58021379]
[1742390379006,0.05441117,129.13,129.11,17.1064451]
[1742390379204,0.05441117,129.13,129.1,36.83420906]
[1742390379401,0.05441117,129.13,129.11,6.57577811]
[1742390379601,0.05441117,129.13,129.1,44.57960906]
[1742390379802,0.05441117,129.13,129.11,6.57583792]
[1742390380109,0.05441117,129.13,129.12,6.57583792]
[1742390380304,0.05441117,129.13,129.1,36.83420906]
[1742390380502,0.05441117,129.13,129.11,24.83772221]
[1742390380709,4.1937,129.18,129.12,6.57431637]
[1742390380906,4.1937,129.18,129.11,10.51791896]
[1742390381106,267.3,129.19,129.13,50.7844587]
[1742390381409,267.3,129.19,129.14,43.25295317]
[1742390381605,267.3,129.19,129.15,14.31525317]
[1742390381908,267.3,129.19,129.16,6.56451573]
[1742390382110,7.7415,129.17,129.16,0.05171314]
[1742390384309,0.05695974,129.18,129.16,0.05171314]
[1742390384607,0.05695974,129.18,129.16,36.59171314]
[1742390384905,267.22,129.27,129.17,57.33750053]
[1742390385105,267.22,129.27,129.18,6.55141114]
[1742390385302,267.22,129.27,129.2,7.7394]
[1742390385710,7.7371,129.25,129.19,36.64]
[1742390386008,0.0575989,129.25,129.22,0.0554532]
[1742390386810,7.7373,129.24,129.22,0.0554532]
[1742390387112,0.0575989,129.25,129.22,0.0554532]
[1742390388011,0.0575989,129.25,129.22,36.6354532]
[1742390388202,0.0575989,129.25,129.22,0.0554532]
[1742390388514,50.7844587,129.24,129.16,36.58]
[1742390389006,50.7844587,129.22,129.16,36.58]
[1742390389208,307.725,129.21,129.12,36.54]
[1742390389412,36.54,129.2,129.13,6.53456029]
[1742390389612,0.05898376,129.18,129.17,7.7412]
[1742390389910,0.05898376,129.18,129.15,36.56]
[1742390390110,0.05898376,129.18,129.17,7.7415]
[1742390390299,0.05898376,129.18,129.16,0.05335203]
[1742390390708,0.05898376,129.18,129.17,7.7415]
[1742390390909,0.05898376,129.18,129.16,0.05335203]
[1742390391702,0.05898376,129.18,129.16,7.79515203]
[1742390391906,0.05898376,129.18,129.16,0.05335203]
[1742390392515,0.05898376,129.18,129.17,7.7415]
[1742390393107,0.05898376,129.18,129.16,0.05335203]
[1742390393108,36.38,129.25,129.16,25.44558138]
[1742390393413,267.12,129.26,129.17,6.52204721]
[1742390393615,7.738,129.23,129.18,44.1207]
[1742390393815,267.12,129.26,129.18,36.38]
[1742390394115,50.7844587,129.25,129.18,36.38]
[1742390394311,0.05321251,129.23,129.21,0.05593918]
[1742390394807,7.7385,129.22,129.21,0.05593918]
[1742390395411,7.7408,129.19,129.16,36.26]
[1742390395617,36.26,129.21,129.13,36.26]
[1742390395813,36.26,129.21,129.14,7.743]
[1742390396115,36.26,129.21,129.13,36.26]
[1742390396313,267.06,129.2,129.13,36.26]
[1742390396520,50.7844587,129.19,129.11,3.9605]
[1742390396708,275.4077,129.2,129.1,36.53621]
[1742390396709,50.7844587,129.17,129.1,36.53621]
[1742390396910,50.7844587,129.17,129.1,0.33621]
[1742390397111,50.7844587,129.15,129.1,0.33621]
[1742390397313,36.18,129.14,129.1,0.33621]